bitfinex/quotes_BTCUSD_20240823
["timestamp","ask_amount","ask_price","bid_price","bid_amount"]
[1724422727997,0.16400298,61603.0,61588.0,0.81702754]
[1724422728198,0.40030298,61598.0,61568.0,0.5646]
[1724422728420,1.21201498,61598.0,61568.0,0.5646]
[1724422728622,0.56346036,61592.0,61568.0,0.5646]
[1724422728915,1.37689734,61592.0,61568.0,0.5646]
[1724422729100,1.70361434,61592.0,61567.0,0.0101603]
[1724422729327,3.21101534,61592.0,61567.0,0.0101603]
[1724422729504,0.81203,61574.0,61567.0,0.0101603]
[1724422729656,1.42494734,61574.0,61567.0,0.0101603]
[1724422729866,1.42494734,61574.0,61571.0,0.2]
[1724422729867,0.16400298,61574.0,61571.0,0.2]
[1724422730084,0.49229154,61605.0,61571.0,0.2]
[1724422730283,0.16400298,61581.0,61571.0,0.2]
[1724422730642,0.16400298,61576.0,61571.0,0.0002]
[1724422730849,0.2361,61596.0,61571.0,0.0002]
[1724422731044,0.16400298,61590.0,61571.0,0.0002]
[1724422731246,0.16400298,61590.0,61574.0,0.32481]
[1724422731454,0.05,61597.0,61596.0,0.162348]
[1724422731692,0.21400298,61597.0,61576.0,0.5999]
[1724422731901,0.05,61597.0,61596.0,0.162348]
[1724422732113,0.05,61597.0,61576.0,0.5999]
[1724422732114,0.21400298,61597.0,61576.0,0.5999]
[1724422732324,0.16400298,61577.0,61555.0,0.6026]
[1724422732535,0.16400298,61574.0,61555.0,0.6026]
[1724422732940,0.16400298,61574.0,61564.0,0.324863]
[1724422733141,0.16400298,61574.0,61557.0,0.49229154]
[1724422733388,0.00110236,61594.0,61555.0,0.6026]
[1724422733389,0.16400298,61573.0,61555.0,0.6026]
[1724422733563,0.26400298,61572.0,61555.0,0.6026]
[1724422733765,0.26400298,61572.0,61556.0,0.324903]
[1724422733964,0.26400298,61572.0,61555.0,0.6026]
[1724422734365,0.16400298,61565.0,61555.0,0.6026]
[1724422734581,0.1,61564.0,61555.0,0.6026]
[1724422734768,0.16400298,61563.0,61555.0,0.6026]
[1724422735172,0.1,61562.0,61555.0,0.6026]
[1724422735372,0.16400298,61561.0,61555.0,0.6026]
[1724422735581,0.16400298,61561.0,61556.0,0.162452]
[1724422735863,0.0002,61659.0,61572.0,0.5769]
[1724422735864,0.49229154,61593.0,61572.0,0.5769]
[1724422736066,0.49229154,61575.0,61574.0,0.324812]
[1724422736288,0.16400298,61592.0,61572.0,0.5769]
[1724422736523,0.16400298,61586.0,61572.0,0.5769]
[1724422736745,0.16400298,61580.0,61574.0,0.162404]
[1724422736919,0.16400298,61580.0,61572.0,0.5769]
[1724422737145,0.05,61597.0,61572.0,0.5769]
[1724422737349,0.16400298,61589.0,61572.0,0.5769]
[1724422737551,0.05,61597.0,61582.0,0.49229154]
[1724422737758,0.2361,61631.0,61610.0,0.162311]
[1724422737961,0.00044094,61641.0,61610.0,1.379755]
[1724422738168,0.00044094,61641.0,61582.0,0.5682]
[1724422738169,0.21380298,61611.0,61582.0,0.5682]
[1724422738588,0.16400298,61610.0,61590.0,0.324725]
[1724422738762,0.49229154,61609.0,61582.0,0.5682]
[1724422739093,0.16400298,61608.0,61582.0,0.5682]
[1724422739506,0.16400298,61608.0,61588.0,0.324734]
[1724422739618,0.16400298,61608.0,61589.0,0.324733]
[1724422739825,0.16400298,61608.0,61582.0,0.5682]
[1724422740044,0.0498,61611.0,61606.0,0.4124]
[1724422740269,0.0498,61611.0,61610.0,0.162311]
[1724422740468,0.0498,61611.0,61606.0,0.4124]
[1724422740469,0.21380298,61611.0,61606.0,0.4124]
[1724422740621,0.16400298,61610.0,61601.0,0.1886]
[1724422740823,0.0498,61611.0,61610.0,0.162311]
[1724422741068,0.0498,61611.0,61610.0,0.486933]
[1724422741223,0.0498,61611.0,61610.0,0.162311]
[1724422741422,0.49229154,61629.0,61601.0,0.1886]
[1724422741660,0.16400298,61628.0,61602.0,0.16400298]
[1724422741892,0.2361,61654.0,61608.0,0.3922]
[1724422742068,0.49229154,61635.0,61609.0,0.18700298]
[1724422742277,0.16400298,61634.0,61609.0,0.18700298]
[1724422742480,0.0002,61659.0,61612.0,0.3922]
[1724422742659,0.0002,61659.0,61631.0,0.3922]
[1724422742660,0.49229154,61635.0,61631.0,0.3922]
[1724422742863,0.0002,61659.0,61631.0,0.3922]
[1724422742864,0.16400298,61634.0,61631.0,0.3922]
[1724422743110,0.065035,61657.0,61632.0,0.1937]
[1724422743312,0.65629452,61650.0,61632.0,0.1937]
[1724422743460,0.16400298,61650.0,61632.0,0.1937]
[1724422744123,0.0002,61659.0,61638.0,0.49229154]
[1724422744276,0.0002,61659.0,61658.0,0.162184]
[1724422744479,0.0002,61659.0,61652.0,0.570098]
[1724422744682,0.2361,61658.0,61635.0,0.5942]
[1724422744905,0.398286,61658.0,61623.0,0.414]
[1724422745080,0.2361,61658.0,61644.0,0.16222]
[1724422745281,0.0002,61659.0,61636.0,0.324484]
[1724422745509,0.0002,61659.0,61623.0,0.414]
[1724422746070,0.0002,61659.0,61622.0,0.1802]
[1724422746267,0.0002,61659.0,61623.0,0.023]
[1724422746677,0.16400298,61638.0,61622.0,0.1802]
[1724422746918,0.3908,61646.0,61623.0,0.49229154]
[1724422746919,0.16400298,61636.0,61623.0,0.49229154]
[1724422747234,0.16400298,61636.0,61613.0,0.327605]
[1724422747235,0.1,61635.0,61613.0,0.003]
[1724422747469,0.16400298,61634.0,61611.0,0.1802]
[1724422747599,0.16400298,61616.0,61593.0,0.1802]
[1724422747799,0.0504,61624.0,61596.0,0.49229154]
[1724422747800,0.3879,61607.0,61596.0,0.49229154]
[1724422748081,0.3887378,61607.0,61575.0,0.1923]
[1724422748268,0.1,61606.0,61575.0,0.1923]
[1724422748475,0.49229154,61603.0,61575.0,0.1923]
[1724422748672,0.162402,61576.0,61567.0,0.1923]
[1724422748928,0.162355,61594.0,61571.0,0.162413]
[1724422749119,0.5,61606.0,61553.0,0.00212]
[1724422749120,0.1238378,61593.0,61557.0,0.4031]
[1724422749325,0.4,61587.0,61558.0,0.49229154]
[1724422749554,0.1238378,61586.0,61558.0,0.49229154]
[1724422749774,0.324792,61578.0,61558.0,0.49229154]
[1724422749993,0.16400298,61577.0,61557.0,0.4031]
[1724422750193,0.16400298,61577.0,61557.0,0.565549]
[1724422750319,0.16400298,61577.0,61558.0,0.324895]
[1724422750529,0.1,61586.0,61569.0,0.001]
[1724422750748,0.49229154,61576.0,61566.0,0.32485]
[1724422751118,0.16400298,61576.0,61562.0,0.324875]
[1724422751320,0.16400298,61574.0,61557.0,0.4031]
[1724422751881,0.3879,61589.0,61553.0,0.00012]
[1724422751882,0.16400298,61571.0,61553.0,0.00012]
[1724422752088,0.1,61570.0,61553.0,0.00012]
[1724422752416,0.0504,61576.0,61553.0,0.00012]
[1724422752417,0.0504,61585.0,61553.0,0.16412298]
[1724422752708,0.16400298,61584.0,61553.0,0.16412298]
[1724422752999,1.06430454,61610.0,61570.0,0.1967]
[1724422753240,1.06430454,61610.0,61553.0,0.00012]
[1724422753241,0.0504,61590.0,61561.0,0.1901]
[1724422753347,0.0504,61590.0,61553.0,0.00012]
[1724422753348,0.3775,61589.0,61553.0,0.00012]
[1724422753554,0.3775,61589.0,61556.0,0.001]
[1724422753760,0.16235,61596.0,61576.0,0.1624]
[1724422753960,0.3796,61598.0,61562.0,0.3956]
[1724422754155,0.324695,61597.0,61566.0,0.003]
[1724422754386,0.3796,61598.0,61576.0,0.1974]
[1724422754584,0.0504,61609.0,61576.0,0.1974]
[1724422754803,0.0504,61609.0,61553.0,0.10012]
[1724422754804,0.0008378,61582.0,61557.0,0.1984]
[1724422754985,0.324836,61570.0,61553.0,0.00012]
[1724422755223,0.32489,61560.0,61553.0,0.00012]
[1724422755429,0.16400298,61560.0,61553.0,0.00012]
[1724422755822,0.16400298,61554.0,61553.0,0.00012]
[1724422756019,0.42646098,61554.0,61553.0,0.00012]
[1724422756447,0.75137798,61554.0,61553.0,0.00012]
[1724422756647,1.42421198,61554.0,61553.0,0.00012]
[1724422756848,0.487392,61552.0,61520.0,0.325096]
[1724422757093,0.324978,61543.0,61515.0,0.49229154]
[1724422757260,0.16400298,61536.0,61515.0,0.49229154]
[1724422757466,0.28700298,61536.0,61512.0,0.001]
[1724422757840,1.23052198,61536.0,61512.0,0.001]
[1724422758036,1.55553498,61536.0,61512.0,0.001]
[1724422758445,0.77452198,61536.0,61512.0,0.001]
[1724422758648,0.724931,61552.0,61512.0,0.001]
[1724422758649,0.4095,61558.0,61525.0,0.3864]
[1724422758871,0.095,61590.0,61525.0,0.3864]
[1724422758872,0.49229154,61573.0,61553.0,0.812307]
[1724422759139,0.421612,61554.0,61537.0,0.325005]
[1724422759267,0.421612,61554.0,61545.0,0.162482]
[1724422759268,0.4095,61554.0,61545.0,0.162482]
[1724422759468,0.3957,61563.0,61532.0,0.001]
[1724422759850,0.3954,61572.0,61544.0,0.001]
[1724422759979,0.16400298,61557.0,61539.0,0.3934]
[1724422760180,0.0502,61574.0,61538.0,0.003]
[1724422760181,0.324691,61597.0,61550.0,0.004025]
[1724422760381,0.49229154,61596.0,61552.0,0.5625]
[1724422760594,0.3909,61599.0,61558.0,0.004]
[1724422760819,0.3909,61599.0,61560.0,0.3789]
[1724422761026,0.3909,61599.0,61582.0,0.324765]
[1724422761228,0.3909,61599.0,61578.0,0.001]
[1724422761511,0.3909,61599.0,61564.0,0.002]
[1724422761512,0.16400298,61598.0,61589.0,0.1813]
[1724422761659,0.16400298,61599.0,61590.0,0.324727]
[1724422761864,0.4079,61611.0,61589.0,0.1813]
[1724422761865,0.16400298,61598.0,61589.0,0.1813]
[1724422762313,0.40325682,61611.0,61589.0,0.1813]
[1724422762521,0.16400298,61610.0,61589.0,0.1813]
[1724422762756,0.0502,61629.0,61594.0,0.003]
[1724422762971,0.16400298,61609.0,61603.0,0.162328]
[1724422763199,0.16400298,61609.0,61589.0,0.1813]
[1724422763200,0.16400298,61609.0,61590.0,0.49229154]
[1724422763404,0.16400298,61609.0,61595.0,0.3247]
[1724422763613,0.0502,61629.0,61590.0,0.49229154]
[1724422763819,0.16400298,61626.0,61609.0,0.162312]
[1724422764025,0.16400298,61626.0,61613.0,0.4132]
[1724422764235,0.0502,61638.0,61614.0,0.1942]
[1724422764397,0.16400298,61637.0,61622.0,0.162279]
[1724422764573,0.16400298,61637.0,61614.0,0.1942]
[1724422764783,0.16400298,61637.0,61628.0,0.162261]
[1724422765127,0.16400298,61637.0,61614.0,0.25494]
[1724422765128,0.162255,61632.0,61614.0,0.1942]
[1724422765355,0.162295,61617.0,61605.0,0.1971]
[1724422765509,0.162317,61608.0,61606.0,0.49229154]
[1724422765707,0.4,61617.0,61590.0,0.49229154]
[1724422765923,0.00074255,61626.0,61590.0,0.49229154]
[1724422765924,0.16400298,61610.0,61590.0,0.49229154]
[1724422766327,0.16400298,61610.0,61593.0,0.001]
[1724422766503,0.0502,61628.0,61594.0,0.16400298]
[1724422766703,0.16400298,61627.0,61607.0,0.3993]
[1724422766910,0.16400298,61627.0,61610.0,0.001]
[1724422767109,0.4,61652.0,61615.0,0.001]
[1724422767110,0.4025,61642.0,61615.0,0.001]
[1724422767311,0.16400298,61638.0,61617.0,0.324583]
[1724422767514,0.16400298,61638.0,61611.0,0.186]
[1724422767709,0.16400298,61638.0,61614.0,0.49229154]
[1724422768078,0.16400298,61635.0,61611.0,0.186]
[1724422768280,0.406,61654.0,61595.0,0.001]
[1724422768281,0.16400298,61621.0,61596.0,0.1918]
[1724422768513,0.4645,61634.0,61596.0,0.1918]
[1724422768514,0.16400298,61617.0,61608.0,0.49229154]
[1724422768725,0.16400298,61617.0,61596.0,0.1918]
[1724422769130,0.16400298,61616.0,61596.0,0.1918]
[1724422769280,0.162327,61604.0,61590.0,0.00021017]
[1724422769647,0.3868,61633.0,61598.0,0.3864]
[1724422769856,0.49229154,61629.0,61598.0,0.3864]
[1724422770000,0.49229154,61629.0,61590.0,0.00021017]
[1724422770001,0.16400298,61618.0,61590.0,0.00021017]
[1724422770211,0.16400298,61618.0,61591.0,0.49229154]
[1724422770407,0.023,61617.0,61591.0,0.49229154]
[1724422770607,0.123,61617.0,61591.0,0.49229154]
[1724422770852,0.487083,61591.0,61590.0,0.00021017]
[1724422771024,0.1,61591.0,61590.0,0.00021017]
[1724422771250,0.26400298,61591.0,61590.0,0.00021017]
[1724422771449,0.26400298,61591.0,61565.0,0.003]
[1724422771450,1.03242498,61591.0,61555.0,0.1959]
[1724422771691,0.162427,61566.0,61565.0,0.49229154]
[1724422771988,0.16400298,61566.0,61565.0,0.49229154]
[1724422772147,0.26400298,61566.0,61565.0,0.00038064]
[1724422772884,0.1,61566.0,61565.0,0.00038064]
[1724422773059,0.162388,61581.0,61565.0,0.00038064]
[1724422773261,0.555863,61591.0,61571.0,0.162412]
[1724422773470,0.49529154,61626.0,61565.0,0.0166625]
[1724422773471,0.4046,61601.0,61585.0,0.162375]
[1724422773682,0.16400298,61600.0,61587.0,0.4073]
[1724422773891,0.05,61621.0,61593.0,0.324711]
[1724422774060,0.162294,61617.0,61602.0,0.1884]
[1724422774262,0.16400298,61614.0,61588.0,0.1998]
[1724422774460,0.16400298,61614.0,61589.0,0.49229154]
[1724422775006,0.16400298,61614.0,61590.0,0.18700298]
[1724422775361,0.16400298,61613.0,61591.0,0.3912]
[1724422775765,0.16400298,61613.0,61597.0,0.324687]
[1724422775995,0.324518,61630.0,61603.0,0.324657]
[1724422776237,0.16400298,61629.0,61613.0,0.162303]
[1724422776439,0.16400298,61629.0,61606.0,0.1921]
[1724422776581,0.324674,61639.0,61607.0,0.16400298]
[1724422776582,0.0002,61639.0,61607.0,0.16400298]
[1724422776785,0.16400298,61638.0,61620.0,0.162284]
[1724422776983,0.16400298,61638.0,61609.0,0.415]
[1724422777184,0.16400298,61637.0,61621.0,0.32456]
[1724422777405,0.0002,61639.0,61628.0,0.324526]
[1724422777631,0.0002,61639.0,61622.0,0.16400298]
[1724422777632,0.0002,61639.0,61623.0,0.1865]
[1724422777831,0.0002,61639.0,61624.0,0.16400298]
[1724422778179,0.0002,61639.0,61638.0,0.162237]
[1724422778572,0.0002,61639.0,61638.0,0.486712]
[1724422778881,0.0002,61639.0,61638.0,0.162237]
[1724422779039,0.0002,61659.0,61649.0,0.162207]
[1724422779195,0.0002,61659.0,61638.0,0.35310298]
[1724422779395,0.16400298,61658.0,61630.0,0.3939]
[1724422779597,0.16400298,61649.0,61630.0,0.55790298]
[1724422779800,0.0002,61659.0,61631.0,0.48850998]
[1724422780174,0.16400298,61658.0,61636.0,0.324482]
[1724422780339,0.0002,61659.0,61637.0,0.16400298]
[1724422780541,0.0002,61659.0,61650.0,0.32441]
[1724422780743,0.0002,61659.0,61658.0,0.162184]
[1724422781246,0.0002,61659.0,61652.0,0.3835]
[1724422781448,0.0002,61659.0,61654.0,0.515289]
[1724422781656,0.0002,61659.0,61649.0,0.1905]
[1724422781852,0.0002,61659.0,61658.0,0.162184]
[1724422782153,0.0002,61679.0,61659.0,0.3921]
[1724422782357,0.0002,61679.0,61665.0,0.162165]
[1724422782568,0.0002,61679.0,61660.0,0.51135898]
[1724422782569,0.0002,61679.0,61667.0,0.3993]
[1724422782775,0.0002,61679.0,61678.0,0.162132]
[1724422783253,0.0002,61679.0,61667.0,0.3993]
[1724422783471,0.0002,61679.0,61668.0,0.53725516]
[1724422783671,0.0002,61679.0,61667.0,0.3993]
[1724422783881,0.0002,61679.0,61671.0,0.3243]
[1724422784095,0.0002,61679.0,61667.0,0.3993]
[1724422784294,0.0002,61679.0,61678.0,0.486396]
[1724422784494,0.0779341,61679.0,61678.0,0.324264]
[1724422784746,0.0779341,61679.0,61678.0,1.03308938]
[1724422784976,0.49229154,61716.0,61679.0,0.003]
[1724422785172,0.49229154,61696.0,61681.0,0.5934]
[1724422785383,0.324072,61715.0,61681.0,0.5934]
[1724422785560,0.162125,61681.0,61660.0,0.162178]
[1724422785765,0.162129,61680.0,61671.0,0.5934]
[1724422785912,0.16400298,61695.0,61671.0,0.5934]
[1724422786154,0.324212,61688.0,61671.0,0.5934]
[1724422786364,0.4038,61696.0,61672.0,0.65629452]
[1724422786679,0.3856,61705.0,61672.0,0.16400298]
[1724422786880,0.3856,61705.0,61673.0,0.0757403]
[1724422787081,0.49229154,61715.0,61680.0,0.184]
[1724422787277,0.49229154,61715.0,61695.0,0.324174]
[1724422787437,0.49229154,61715.0,61695.0,0.00031064]
[1724422787685,0.65629452,61698.0,61695.0,0.00031064]
[1724422787887,0.16400298,61697.0,61695.0,0.00031064]
[1724422788125,0.3856,61718.0,61695.0,0.00031064]
[1724422788236,0.16400298,61697.0,61695.0,0.00031064]
[1724422788436,0.32413,61704.0,61695.0,0.00031064]
[1724422788636,0.3856,61718.0,61695.0,0.00031064]
[1724422788881,0.16400298,61698.0,61695.0,0.00031064]
[1724422789084,0.162085,61696.0,61695.0,0.00031064]
[1724422789284,1.48702798,61696.0,61695.0,0.00031064]
[1724422789485,1.16285798,61696.0,61695.0,0.00031064]
[1724422789914,1.48702798,61696.0,61695.0,0.00031064]
[1724422790132,0.26400298,61696.0,61695.0,0.00031064]
[1724422790343,0.1,61696.0,61695.0,0.00031064]
[1724422790661,0.1,61701.0,61695.0,0.00031064]
[1724422790867,0.16420298,61699.0,61695.0,0.00031064]
[1724422791085,0.1,61698.0,61695.0,0.00031064]
[1724422791287,0.16400298,61697.0,61695.0,0.00031064]
[1724422791491,0.1,61696.0,61695.0,0.00031064]
[1724422791711,0.26400298,61696.0,61695.0,0.00031064]
[1724422792166,0.16400298,61696.0,61695.0,0.00031064]
[1724422792357,0.0002,61699.0,61696.0,0.5802]
[1724422792474,0.0002,61699.0,61697.0,0.05805106]
[1724422792679,0.0002,61699.0,61697.0,0.0583617]
[1724422792888,0.0002,61699.0,61697.0,0.00031063]
[1724422794136,0.162079,61698.0,61697.0,0.00031063]
[1724422794310,0.0002,61699.0,61697.0,0.00031063]
[1724422794512,0.32628098,61699.0,61697.0,0.00031063]
[1724422794731,0.0002,61699.0,61697.0,0.00031063]
[1724422795268,0.16400298,61698.0,61697.0,0.00031063]
[1724422795473,0.0002,61699.0,61697.0,0.00031063]
[1724422795621,0.16420298,61699.0,61697.0,0.00031063]
[1724422796114,0.26400298,61698.0,61697.0,0.00031063]
[1724422796335,0.75024098,61698.0,61697.0,0.00031063]
[1724422796490,0.4,61697.0,61661.0,0.3876]
[1724422796714,0.486412,61676.0,61675.0,0.49229154]
[1724422796922,0.1,61676.0,61662.0,0.05713981]
[1724422797074,0.26400298,61675.0,61662.0,0.00031063]
[1724422797283,0.1,61675.0,61662.0,0.0574815]
[1724422797511,0.4187,61698.0,61662.0,0.22148448]
[1724422797714,0.49229154,61663.0,61662.0,0.00031063]
[1724422797887,0.16400298,61666.0,61662.0,0.00031063]
[1724422798064,0.486514,61663.0,61662.0,0.00031063]
[1724422798293,0.586514,61663.0,61662.0,0.00031063]
[1724422798499,1.2352,61663.0,61662.0,0.00031063]
[1724422798733,1.2582,61663.0,61662.0,0.00031063]
[1724422798902,1.81720298,61663.0,61662.0,0.00031063]
[1724422799105,1.81720298,61663.0,61654.0,0.48662423]
[1724422799106,2.1847944,61655.0,61654.0,0.48662423]
[1724422799311,2.02441238,61655.0,61654.0,0.48662423]
[1724422799512,2.04741238,61655.0,61654.0,0.30342298]
[1724422799716,2.65812338,61655.0,61654.0,0.13165026]
[1724422799959,2.34317238,61655.0,61654.0,0.13165026]
[1724422800162,2.56266238,61655.0,61654.0,0.00375026]
[1724422800363,0.0006774,61642.0,61609.0,0.1929]
[1724422800567,0.486712,61638.0,61637.0,0.49229154]
[1724422800741,0.486712,61638.0,61609.0,0.1929]
[1724422800742,0.16400298,61638.0,61609.0,0.1929]
[1724422800949,0.324491,61635.0,61609.0,0.1929]
[1724422801191,0.4,61636.0,61600.0,0.004025]
[1724422801192,0.324568,61621.0,61600.0,0.004025]
[1724422801379,0.162335,61601.0,61600.0,0.49631654]
[1724422801622,0.16400298,61601.0,61600.0,0.004025]
[1724422801990,0.65100798,61601.0,61600.0,0.004025]
[1724422802160,0.91334298,61601.0,61600.0,0.004025]
[1724422802360,0.42633798,61601.0,61600.0,0.004025]
[1724422802565,0.75100798,61601.0,61600.0,0.004025]
[1724422802812,1.07567798,61601.0,61600.0,0.004025]
[1724422803025,1.09867798,61601.0,61600.0,0.004025]
[1724422803233,1.42334798,61601.0,61600.0,0.004025]
[1724422803446,0.162358,61592.0,61571.0,0.0002]
[1724422803629,1.09879498,61592.0,61571.0,0.0002]
[1724422803840,1.42351198,61592.0,61571.0,0.0002]
[1724422804233,0.42636098,61592.0,61571.0,0.0002]
[1724422804399,1.07579498,61592.0,61571.0,0.0002]
[1724422804585,0.42636098,61592.0,61571.0,0.0002]
[1724422804789,0.045975,61600.0,61583.0,0.3825]
[1724422805049,0.16400298,61598.0,61583.0,0.3825]
[1724422805258,0.16400298,61592.0,61574.0,0.3825]
[1724422805454,0.045975,61600.0,61584.0,0.324755]
[1724422805653,0.045975,61600.0,61593.0,0.3825]
[1724422805896,0.3844,61641.0,61595.0,0.3854]
[1724422806165,0.49229154,61649.0,61615.0,0.3854]
[1724422806166,0.16400298,61631.0,61615.0,0.3854]
[1724422806336,0.49229154,61630.0,61629.0,0.547661]
[1724422806583,0.49229154,61630.0,61629.0,0.3854]
[1724422806790,0.16400298,61630.0,61610.0,0.3836]
[1724422806964,0.16400298,61630.0,61602.0,0.1832]
[1724422806965,0.16400298,61616.0,61602.0,0.1832]
[1724422807539,0.162311,61610.0,61602.0,0.1832]
[1724422807847,0.162351,61595.0,61590.0,0.1832]
[1724422808031,0.16400298,61594.0,61590.0,0.1832]
[1724422808237,0.4086,61623.0,61590.0,0.1832]
[1724422808437,0.16400298,61617.0,61590.0,0.1832]
[1724422808636,0.1,61616.0,61593.0,0.3881]
[1724422808811,0.1,61616.0,61607.0,0.324634]
[1724422809012,0.1,61616.0,61611.0,0.162308]
[1724422809215,0.1,61616.0,61607.0,0.324634]
[1724422809216,0.16400298,61615.0,61577.0,0.003]
[1724422809422,0.1,61616.0,61608.0,0.162316]
[1724422809756,0.4007,61632.0,61595.0,0.001]
[1724422809757,0.1,61627.0,61595.0,0.001]
[1724422809957,0.16400298,61623.0,61605.0,0.324644]
[1724422810173,0.16400298,61623.0,61597.0,0.5712]
[1724422810465,0.3919,61646.0,61597.0,0.5712]
[1724422810466,0.3919,61646.0,61613.0,0.1876]
[1724422810655,0.16400298,61622.0,61613.0,0.1876]
[1724422811010,0.00069592,61653.0,61626.0,0.162267]
[1724422811217,0.162265,61628.0,61613.0,0.24472]
[1724422811401,0.16400298,61627.0,61613.0,0.1876]
[1724422811969,0.32446,61641.0,61614.0,0.324599]
[1724422812077,0.3991,61661.0,61623.0,0.1853]
[1724422812078,0.49229154,61659.0,61623.0,0.1853]
[1724422812278,0.16400298,61658.0,61626.0,0.324537]
[1724422812500,0.16400298,61658.0,61644.0,0.162221]
[1724422812952,0.3893,61671.0,61645.0,0.1803]
[1724422813152,0.391,61683.0,61663.0,0.162171]
[1724422813355,0.4002,61699.0,61647.0,0.3898]
[1724422813356,0.49229154,61687.0,61672.0,0.162146]
[1724422813685,0.0002,61699.0,61664.0,0.36110298]
[1724422813686,0.0002,61699.0,61665.0,0.3898]
[1724422813892,0.16400298,61698.0,61681.0,0.162123]
[1724422814088,0.16400298,61698.0,61667.0,0.49229154]
[1724422814319,0.16400298,61698.0,61689.0,0.1866]
[1724422815065,0.0002,61699.0,61689.0,0.1866]
[1724422815264,0.0002,61699.0,61698.0,0.162079]
[1724422815552,0.0002,61699.0,61698.0,0.534862]
[1724422815953,0.0002,61719.0,61711.0,0.162043]
[1724422816152,0.0002,61719.0,61718.0,0.3757]
[1724422816358,0.0002,61719.0,61718.0,0.88852998]
[1724422816601,0.0002,61719.0,61718.0,0.1868]
[1724422816757,0.16420298,61719.0,61709.0,0.3962]
[1724422816959,0.16420298,61719.0,61706.0,0.1892]
[1724422816960,0.16400298,61718.0,61706.0,0.1892]
[1724422817317,0.0002,61719.0,61706.0,0.1892]
[1724422817318,0.0002,61719.0,61707.0,0.16400298]
[1724422817531,0.0002,61719.0,61718.0,0.3962]
[1724422817865,0.323898,61748.0,61732.0,0.323978]
[1724422817866,0.49229154,61748.0,61732.0,0.323978]
[1724422818077,0.16400298,61747.0,61731.0,0.1892]
[1724422818281,0.161967,61741.0,61719.0,0.586]
[1724422818484,0.16400298,61739.0,61719.0,0.586]
[1724422818691,0.16400298,61727.0,61708.0,0.1837]
[1724422818902,0.001,61738.0,61718.0,0.49229154]
[1724422818903,0.16400298,61723.0,61718.0,0.49229154]
[1724422819105,0.3963,61726.0,61702.0,0.49229154]
[1724422819539,0.3963,61726.0,61689.0,0.1837]
[1724422819745,0.16400298,61721.0,61689.0,0.34770298]
[1724422819943,0.1,61720.0,61702.0,0.3867]
[1724422820144,0.26400298,61720.0,61703.0,0.19384087]
[1724422820422,0.1,61720.0,61703.0,0.1906]
[1724422820562,0.162064,61704.0,61694.0,0.1906]
[1724422820767,0.162064,61704.0,61666.0,0.0760903]
[1724422820768,0.162168,61665.0,61652.0,0.4128]
[1724422820963,0.162169,61664.0,61663.0,0.49229154]
[1724422821234,0.1,61664.0,61652.0,0.4128]
[1724422821407,0.1,61664.0,61653.0,0.00324333]
[1724422821616,0.1,61664.0,61653.0,0.16724631]
[1724422821818,0.375,61690.0,61654.0,0.16400298]
[1724422821992,0.26400298,61689.0,61655.0,0.11252826]
[1724422822196,0.1,61689.0,61681.0,0.324248]
[1724422822394,0.16400298,61688.0,61681.0,0.4157]
[1724422822616,0.101,61698.0,61681.0,0.4157]
[1724422822815,0.16209,61694.0,61681.0,0.4157]
[1724422822972,0.26400298,61693.0,61672.0,0.4078]
[1724422823181,0.26400298,61693.0,61678.0,0.16213]
[1724422823401,0.1,61693.0,61672.0,0.57180298]
[1724422823596,0.1,61693.0,61673.0,0.16724484]
[1724422824015,0.16400298,61692.0,61672.0,0.4078]
[1724422824242,0.16400298,61689.0,61673.0,0.49553437]
[1724422824456,0.26400298,61688.0,61669.0,0.4078]
[1724422824827,0.26400298,61688.0,61671.0,0.3243]
[1724422825055,0.00068481,61717.0,61671.0,0.3243]
[1724422825056,0.001,61724.0,61684.0,0.6092]
[1724422825259,0.3241,61710.0,61684.0,0.6092]
[1724422825456,0.324092,61711.0,61687.0,0.162107]
[1724422825763,0.001,61710.0,61688.0,0.16724448]
[1724422825966,0.16500298,61710.0,61686.0,0.49229154]
[1724422826184,0.16500298,61710.0,61690.0,0.324201]
[1724422826350,0.16500298,61710.0,61690.0,0.162099]
[1724422826600,0.16500298,61710.0,61700.0,0.162072]
[1724422826805,0.16500298,61710.0,61698.0,0.00324113]
[1724422827034,0.16500298,61710.0,61692.0,0.00324113]
[1724422827251,0.16500298,61710.0,61677.0,0.001]
[1724422827252,0.324142,61702.0,61672.0,0.324291]
[1724422827463,0.16400298,61709.0,61686.0,0.49229154]
[1724422827464,0.16400298,61701.0,61686.0,0.49229154]
[1724422827671,0.16400298,61708.0,61689.0,0.1621]
[1724422827876,0.001,61710.0,61690.0,0.16724416]
[1724422828080,0.3873,61727.0,61701.0,0.324139]
[1724422828285,0.16400298,61725.0,61693.0,0.324184]
[1724422828542,0.16400298,61725.0,61694.0,0.49229154]
[1724422828750,0.16400298,61722.0,61695.0,0.32741513]
[1724422828954,0.16400298,61722.0,61697.0,0.32416]
[1724422829167,0.162004,61727.0,61699.0,0.4139]
[1724422829372,0.16400298,61721.0,61700.0,0.0032405]
[1724422829579,0.16400298,61721.0,61702.0,0.162066]
[1724422829866,0.16400298,61721.0,61699.0,0.57790298]
[1724422829867,0.001,61716.0,61699.0,0.4139]
[1724422830071,0.001,61714.0,61699.0,0.4139]
[1724422830280,0.16400298,61715.0,61699.0,0.4139]
[1724422830281,0.001,61724.0,61710.0,0.162047]
[1724422830454,0.001,61724.0,61699.0,0.57790298]
[1724422830455,0.001,61720.0,61699.0,0.4139]
[1724422830617,0.16400298,61719.0,61699.0,0.4139]
[1724422830857,0.001,61720.0,61699.0,0.4139]
[1724422830858,0.26400298,61718.0,61699.0,0.4139]
[1724422831096,0.324165,61697.0,61682.0,0.1906]
[1724422831302,0.324195,61692.0,61679.0,0.49229154]
[1724422831533,0.324097,61710.0,61671.0,0.1906]
[1724422831534,0.324208,61689.0,61671.0,0.1906]
[1724422831752,0.001,61680.0,61663.0,0.1999]